[Event "December 19 Early 2023"]
[Site "https://www.chess.com"]
[Date "2023.12.19"]
[Round "4"]
[White "Samunenkov, Ihor"]
[Black "Shohat, Yotam"]
[Result "1-0"]
[Board "38"]
[TimeControl "180+1"]
[WhiteFideId "14187086"]
[BlackFideId "2813955"]
[WhiteElo "2473"]
[BlackElo "2226"]
[WhiteTeam "UKR"]
[BlackTeam "ISR"]
[WhiteClock "0:00:05"]
[BlackClock "0:00:00"]

1. d4 {[%clk 0:03:00]}  Nf6 {[%clk 0:02:57]} 2. Nc3 {[%clk 0:03:01]}  d5 {[%clk 0:02:55]} 3. Bf4 {[%clk 0:03:02]}  a6 {[%clk 0:02:55]} 4. e3 {[%clk 0:03:01]}  g6 {[%clk 0:02:55]} 5. h4 {[%clk 0:02:57]}  h5 {[%clk 0:02:50]} 6. Nf3 {[%clk 0:02:56]}  Bg4 {[%clk 0:02:49]} 7. Qd2 {[%clk 0:02:55]}  Bxf3 {[%clk 0:02:49]} 8. gxf3 {[%clk 0:02:56]}  e6 {[%clk 0:02:47]} 9. O-O-O {[%clk 0:02:53]}  Nbd7 {[%clk 0:02:24]} 10. e4 {[%clk 0:02:46]}  Bb4 {[%clk 0:02:23]} 11. Bg5 {[%clk 0:02:42]}  Be7 {[%clk 0:02:03]} 12. exd5 {[%clk 0:02:35]}  Nxd5 {[%clk 0:01:41]} 13. Nxd5 {[%clk 0:02:29]}  Bxg5 {[%clk 0:01:41]} 14. Nxc7+ {[%clk 0:02:26]}  Qxc7 {[%clk 0:01:42]} 15. Qxg5 {[%clk 0:02:25]}  Qd8 {[%clk 0:01:28]} 16. f4 {[%clk 0:02:22]}  Qxg5 {[%clk 0:01:02]} 17. fxg5 {[%clk 0:02:22]}  O-O-O {[%clk 0:01:00]} 18. Bg2 {[%clk 0:02:04]}  Kc7 {[%clk 0:01:00]} 19. Rh3 {[%clk 0:01:57]}  Nb6 {[%clk 0:00:54]} 20. Rc3+ {[%clk 0:01:42]}  Kb8 {[%clk 0:00:52]} 21. Rb3 {[%clk 0:01:38]}  Ka7 {[%clk 0:00:47]} 22. Rf3 {[%clk 0:01:33]}  Rd7 {[%clk 0:00:45]} 23. Rf6 {[%clk 0:01:30]}  Rc8 {[%clk 0:00:39]} 24. c3 {[%clk 0:01:26]}  Nc4 {[%clk 0:00:34]} 25. Rd3 {[%clk 0:00:31]}  Ne5 {[%clk 0:00:16]} 26. Rg3 {[%clk 0:00:20]}  Rxd4 {[%clk 0:00:15]} 27. Re3 {[%clk 0:00:15]}  Ng4 {[%clk 0:00:10]} 28. Rxf7 {[%clk 0:00:15]}  Nxe3 {[%clk 0:00:03]} 29. fxe3 {[%clk 0:00:01]}  Rg4 {[%clk 0:00:04]} 30. Bxb7 {[%clk 0:00:01]}  Rb8 {[%clk 0:00:02]} 31. Bf3+ {[%clk 0:00:01]}  Kb6 {[%clk 0:00:03]} 32. Bxg4 {[%clk 0:00:02]}  hxg4 {[%clk 0:00:03]} 33. Rf4 {[%clk 0:00:02]}  g3 {[%clk 0:00:02]} 34. Rg4 {[%clk 0:00:03]}  Rh8 {[%clk 0:00:03]} 35. Kd2 {[%clk 0:00:03]}  g2 {[%clk 0:00:03]} 36. Rxg2 {[%clk 0:00:01]}  Rxh4 {[%clk 0:00:04]} 37. Kd3 {[%clk 0:00:02]}  Kc5 {[%clk 0:00:04]} 38. b4+ {[%clk 0:00:02]}  Kd6 {[%clk 0:00:05]} 39. c4 {[%clk 0:00:02]}  Rh1 {[%clk 0:00:05]} 40. Rf2 {[%clk 0:00:02]}  Rd1+ {[%clk 0:00:05]} 41. Rd2 {[%clk 0:00:02]}  Rg1 {[%clk 0:00:06]} 42. Ke4+ {[%clk 0:00:02]}  Ke7 {[%clk 0:00:06]} 43. Kf4 {[%clk 0:00:02]}  Rf1+ {[%clk 0:00:06]} 44. Ke5 {[%clk 0:00:03]}  Rf5+ {[%clk 0:00:06]} 45. Kd4 {[%clk 0:00:03]}  Rxg5 {[%clk 0:00:07]} 46. a4 {[%clk 0:00:03]}  Kd6 {[%clk 0:00:04]} 47. c5+ {[%clk 0:00:03]}  Kc6 {[%clk 0:00:04]} 48. e4 {[%clk 0:00:03]}  Rg1 {[%clk 0:00:03]} 49. Rb2 {[%clk 0:00:03]}  Rd1+ {[%clk 0:00:03]} 50. Ke5 {[%clk 0:00:03]}  g5 {[%clk 0:00:02]} 51. Kxe6 {[%clk 0:00:02]}  g4 {[%clk 0:00:03]} 52. e5 {[%clk 0:00:02]}  g3 {[%clk 0:00:03]} 53. Rg2 {[%clk 0:00:02]}  Rd4 {[%clk 0:00:03]} 54. Rxg3 {[%clk 0:00:02]}  Rxb4 {[%clk 0:00:03]} 55. Rc3 {[%clk 0:00:01]}  Rxa4 {[%clk 0:00:04]} 56. Ke7 {[%clk 0:00:01]}  Re4 {[%clk 0:00:04]} 57. e6 {[%clk 0:00:02]}  a5 {[%clk 0:00:05]} 58. Kf7 {[%clk 0:00:02]}  a4 {[%clk 0:00:04]} 59. e7 {[%clk 0:00:03]}  Rf4+ {[%clk 0:00:05]} 60. Ke8 {[%clk 0:00:02]}  Re4 {[%clk 0:00:02]} 61. Kf7 {[%clk 0:00:02]}  Rf4+ {[%clk 0:00:02]} 62. Ke6 {[%clk 0:00:02]}  Re4+ {[%clk 0:00:02]} 63. Kf6 {[%clk 0:00:03]}  Re1 {[%clk 0:00:02]} 64. Ra3 {[%clk 0:00:02]}  Kxc5 {[%clk 0:00:01]} 65. Rxa4 {[%clk 0:00:03]}  Kd6 {[%clk 0:00:02]} 66. Rd4+ {[%clk 0:00:03]}  Kc7 {[%clk 0:00:02]} 67. Kf7 {[%clk 0:00:03]}  Rf1+ {[%clk 0:00:03]} 68. Ke6 {[%clk 0:00:03]}  Re1+ {[%clk 0:00:03]} 69. Kf6 {[%clk 0:00:04]}  Rf1+ {[%clk 0:00:03]} 70. Ke6 {[%clk 0:00:03]}  Re1+ {[%clk 0:00:04]} 71. Kf7 {[%clk 0:00:04]}  Rf1+ {[%clk 0:00:04]} 72. Ke8 {[%clk 0:00:05]}  Re1 {[%clk 0:00:05]} 73. Rc4+ {[%clk 0:00:05]}  Kd6 {[%clk 0:00:04]} 74. Rd4+ {[%clk 0:00:04]}  Kc7 {[%clk 0:00:02]} 75. Rd2 {[%clk 0:00:04]}  Re3 {[%clk 0:00:02]} 76. Rc2+ {[%clk 0:00:05]}  Kd6 {[%clk 0:00:00]} 77. Kd8 {[%clk 0:00:05]} 1-0

[Event "December 19 Early 2023"]
[Site "https://www.chess.com"]
[Date "2023.12.19"]
[Round "4"]
[White "Masague Artero, Guerau"]
[Black "Zemlyanskii, Ivan"]
[Result "0-1"]
[Board "40"]
[TimeControl "180+1"]
[WhiteFideId "32098952"]
[BlackFideId "24249971"]
[WhiteElo "2253"]
[BlackElo "2418"]
[WhiteTeam "ESP"]
[BlackTeam "RUS"]
[WhiteClock "0:00:00"]
[BlackClock "0:00:04"]

1. Nf3 {[%clk 0:03:00]}  d5 {[%clk 0:03:00]} 2. e3 {[%clk 0:03:00]}  Nf6 {[%clk 0:03:00]} 3. d4 {[%clk 0:03:01]}  c5 {[%clk 0:02:55]} 4. Bb5+ {[%clk 0:03:00]}  Bd7 {[%clk 0:02:53]} 5. a4 {[%clk 0:03:01]}  g6 {[%clk 0:02:40]} 6. O-O {[%clk 0:03:00]}  Qc7 {[%clk 0:02:37]} 7. c4 {[%clk 0:02:56]}  dxc4 {[%clk 0:02:33]} 8. d5 {[%clk 0:02:56]}  Bxb5 {[%clk 0:02:11]} 9. axb5 {[%clk 0:02:57]}  Nbd7 {[%clk 0:02:12]} 10. Nc3 {[%clk 0:02:55]}  Bg7 {[%clk 0:02:12]} 11. e4 {[%clk 0:02:55]}  O-O {[%clk 0:02:12]} 12. Re1 {[%clk 0:02:47]}  Ng4 {[%clk 0:02:02]} 13. h3 {[%clk 0:02:46]}  Nge5 {[%clk 0:02:02]} 14. Bf4 {[%clk 0:02:44]}  Qb6 {[%clk 0:01:59]} 15. Nxe5 {[%clk 0:02:38]}  Nxe5 {[%clk 0:02:00]} 16. Bxe5 {[%clk 0:02:34]}  Bxe5 {[%clk 0:02:01]} 17. Qa4 {[%clk 0:02:34]}  a6 {[%clk 0:01:51]} 18. Qxc4 {[%clk 0:02:25]}  axb5 {[%clk 0:01:15]} 19. Nxb5 {[%clk 0:02:26]}  Rxa1 {[%clk 0:01:05]} 20. Rxa1 {[%clk 0:02:27]}  Bxb2 {[%clk 0:01:06]} 21. Ra2 {[%clk 0:01:40]}  Be5 {[%clk 0:01:04]} 22. g3 {[%clk 0:01:39]}  g5 {[%clk 0:00:58]} 23. Kg2 {[%clk 0:01:31]}  Rc8 {[%clk 0:00:50]} 24. Rc2 {[%clk 0:01:23]}  Qa5 {[%clk 0:00:45]} 25. Qe2 {[%clk 0:01:15]}  Qa4 {[%clk 0:00:39]} 26. h4 {[%clk 0:00:55]}  c4 {[%clk 0:00:35]} 27. Qg4 {[%clk 0:00:50]}  Rc5 {[%clk 0:00:18]} 28. Qxg5+ {[%clk 0:00:47]}  Bg7 {[%clk 0:00:19]} 29. Nd4 {[%clk 0:00:27]}  h6 {[%clk 0:00:06]} 30. Qg4 {[%clk 0:00:21]}  Kf8 {[%clk 0:00:07]} 31. Nf5 {[%clk 0:00:14]}  Qxc2 {[%clk 0:00:06]} 32. Qxg7+ {[%clk 0:00:14]}  Ke8 {[%clk 0:00:07]} 33. Qg8+ {[%clk 0:00:14]}  Kd7 {[%clk 0:00:07]} 34. Qxf7 {[%clk 0:00:04]}  Qxe4+ {[%clk 0:00:07]} 35. Kh2 {[%clk 0:00:05]}  c3 {[%clk 0:00:05]} 36. Ne3 {[%clk 0:00:02]}  c2 {[%clk 0:00:04]} 37. Qh5 {[%clk 0:00:00]}  c1=Q {[%clk 0:00:04]} 0-1

[Event "December 19 Early 2023"]
[Site "https://www.chess.com"]
[Date "2023.12.19"]
[Round "4"]
[White "Tokhirjonova, Gulrukhbegim"]
[Black "Muradli, Mahammad"]
[Result "0-1"]
[Board "41"]
[TimeControl "180+1"]
[WhiteFideId "14203626"]
[BlackFideId "13409301"]
[WhiteElo "2265"]
[BlackElo "2551"]
[WhiteTeam "USA"]
[BlackTeam "AZE"]
[WhiteClock "0:00:11"]
[BlackClock "0:00:14"]

1. Nf3 {[%clk 0:02:59]}  g6 {[%clk 0:02:58]} 2. e4 {[%clk 0:02:57]}  Bg7 {[%clk 0:02:58]} 3. d4 {[%clk 0:02:52]}  d6 {[%clk 0:02:58]} 4. Nc3 {[%clk 0:02:52]}  Nf6 {[%clk 0:02:55]} 5. Be2 {[%clk 0:02:52]}  O-O {[%clk 0:02:55]} 6. h3 {[%clk 0:02:49]}  Nc6 {[%clk 0:02:55]} 7. Be3 {[%clk 0:02:49]}  Re8 {[%clk 0:02:47]} 8. O-O {[%clk 0:02:46]}  e5 {[%clk 0:02:41]} 9. d5 {[%clk 0:02:43]}  Ne7 {[%clk 0:02:34]} 10. Qd2 {[%clk 0:02:32]}  Nh5 {[%clk 0:02:21]} 11. Rad1 {[%clk 0:02:28]}  a6 {[%clk 0:02:11]} 12. Bh6 {[%clk 0:02:13]}  f6 {[%clk 0:01:52]} 13. Bxg7 {[%clk 0:02:10]}  Kxg7 {[%clk 0:01:53]} 14. Nh2 {[%clk 0:02:02]}  Nf4 {[%clk 0:01:51]} 15. Bf3 {[%clk 0:02:00]}  f5 {[%clk 0:01:41]} 16. Ne2 {[%clk 0:01:58]}  Nxe2+ {[%clk 0:01:32]} 17. Qxe2 {[%clk 0:01:57]}  Rf8 {[%clk 0:01:29]} 18. c4 {[%clk 0:01:51]}  b6 {[%clk 0:01:22]} 19. b4 {[%clk 0:01:35]}  a5 {[%clk 0:01:19]} 20. a3 {[%clk 0:01:35]}  Ba6 {[%clk 0:01:15]} 21. b5 {[%clk 0:01:29]}  Bc8 {[%clk 0:01:13]} 22. a4 {[%clk 0:01:21]}  Bd7 {[%clk 0:01:10]} 23. Qe3 {[%clk 0:01:20]}  h5 {[%clk 0:01:04]} 24. Rfe1 {[%clk 0:01:19]}  f4 {[%clk 0:01:00]} 25. Qe2 {[%clk 0:01:18]}  Ng8 {[%clk 0:01:01]} 26. Nf1 {[%clk 0:01:13]}  Qh4 {[%clk 0:01:00]} 27. Kh2 {[%clk 0:01:11]}  Nf6 {[%clk 0:00:56]} 28. Kg1 {[%clk 0:01:09]}  g5 {[%clk 0:00:42]} 29. g3 {[%clk 0:00:47]}  Qxh3 {[%clk 0:00:27]} 30. Bg2 {[%clk 0:00:44]}  f3 {[%clk 0:00:22]} 31. Qxf3 {[%clk 0:00:35]}  Qg4 {[%clk 0:00:16]} 32. Qe3 {[%clk 0:00:35]}  Be8 {[%clk 0:00:06]} 33. Nh2 {[%clk 0:00:35]}  Qd7 {[%clk 0:00:05]} 34. Qxg5+ {[%clk 0:00:35]}  Bg6 {[%clk 0:00:06]} 35. Bf3 {[%clk 0:00:33]}  Nh7 {[%clk 0:00:05]} 36. Qe3 {[%clk 0:00:32]}  Rf6 {[%clk 0:00:05]} 37. Qe2 {[%clk 0:00:32]}  Raf8 {[%clk 0:00:06]} 38. Rf1 {[%clk 0:00:31]}  Qf7 {[%clk 0:00:05]} 39. Rd3 {[%clk 0:00:30]}  Ng5 {[%clk 0:00:05]} 40. Bg2 {[%clk 0:00:22]}  Qd7 {[%clk 0:00:05]} 41. Qd2 {[%clk 0:00:19]}  Nh3+ {[%clk 0:00:05]} 42. Bxh3 {[%clk 0:00:18]}  Qxh3 {[%clk 0:00:06]} 43. Re3 {[%clk 0:00:17]}  R6f7 {[%clk 0:00:04]} 44. Qe2 {[%clk 0:00:18]}  Qd7 {[%clk 0:00:04]} 45. Rd3 {[%clk 0:00:18]}  Kh7 {[%clk 0:00:04]} 46. Re3 {[%clk 0:00:18]}  Qe7 {[%clk 0:00:04]} 47. Rd3 {[%clk 0:00:19]}  Qg5 {[%clk 0:00:05]} 48. Re3 {[%clk 0:00:19]}  Kg8 {[%clk 0:00:04]} 49. Nf3 {[%clk 0:00:18]}  Qg4 {[%clk 0:00:03]} 50. Nh4 {[%clk 0:00:18]}  Qg5 {[%clk 0:00:02]} 51. Qd2 {[%clk 0:00:17]}  Bxe4 {[%clk 0:00:02]} 52. Qe2 {[%clk 0:00:16]}  Bh7 {[%clk 0:00:02]} 53. Nf3 {[%clk 0:00:16]}  Qg4 {[%clk 0:00:02]} 54. Nh4 {[%clk 0:00:17]}  Qxe2 {[%clk 0:00:03]} 55. Rxe2 {[%clk 0:00:17]}  Bd3 {[%clk 0:00:03]} 56. Ree1 {[%clk 0:00:16]}  Bxc4 {[%clk 0:00:03]} 57. Rd1 {[%clk 0:00:14]}  Bxf1 {[%clk 0:00:03]} 58. Rxf1 {[%clk 0:00:15]}  Kg7 {[%clk 0:00:04]} 59. Kg2 {[%clk 0:00:16]}  Kh6 {[%clk 0:00:03]} 60. Re1 {[%clk 0:00:16]}  Rxf2+ {[%clk 0:00:03]} 61. Kg1 {[%clk 0:00:15]}  Rc2 {[%clk 0:00:03]} 62. Rf1 {[%clk 0:00:15]}  Rff2 {[%clk 0:00:03]} 63. Rxf2 {[%clk 0:00:15]}  Rc5 {[%clk 0:00:01]} 64. Rf6+ {[%clk 0:00:15]}  Kg7 {[%clk 0:00:01]} 65. Rf5 {[%clk 0:00:15]}  Rxd5 {[%clk 0:00:01]} 66. Rxh5 {[%clk 0:00:15]}  Rd1+ {[%clk 0:00:02]} 67. Kf2 {[%clk 0:00:14]}  Ra1 {[%clk 0:00:03]} 68. Nf5+ {[%clk 0:00:14]}  Kg6 {[%clk 0:00:03]} 69. g4 {[%clk 0:00:13]}  Rxa4 {[%clk 0:00:04]} 70. Rh6+ {[%clk 0:00:14]}  Kg5 {[%clk 0:00:04]} 71. Kf3 {[%clk 0:00:12]}  Rf4+ {[%clk 0:00:04]} 72. Ke3 {[%clk 0:00:11]}  Rxg4 {[%clk 0:00:05]} 73. Rh8 {[%clk 0:00:10]}  Kxf5 {[%clk 0:00:06]} 74. Rh7 {[%clk 0:00:11]}  Rb4 {[%clk 0:00:06]} 75. Rxc7 {[%clk 0:00:11]}  Rxb5 {[%clk 0:00:07]} 76. Rc6 {[%clk 0:00:11]}  Ke6 {[%clk 0:00:07]} 77. Rc7 {[%clk 0:00:11]}  Rb4 {[%clk 0:00:07]} 78. Kd3 {[%clk 0:00:12]}  Kd5 {[%clk 0:00:07]} 79. Rc2 {[%clk 0:00:11]}  Rd4+ {[%clk 0:00:07]} 80. Ke3 {[%clk 0:00:10]}  b5 {[%clk 0:00:08]} 81. Rb2 {[%clk 0:00:11]}  Kc6 {[%clk 0:00:08]} 82. Rc2+ {[%clk 0:00:11]}  Kb6 {[%clk 0:00:08]} 83. Rc8 {[%clk 0:00:11]}  a4 {[%clk 0:00:09]} 84. Rb8+ {[%clk 0:00:12]}  Ka5 {[%clk 0:00:10]} 85. Rd8 {[%clk 0:00:13]}  Kb4 {[%clk 0:00:11]} 86. Re8 {[%clk 0:00:13]}  a3 {[%clk 0:00:11]} 87. Rh8 {[%clk 0:00:14]}  a2 {[%clk 0:00:11]} 88. Rh1 {[%clk 0:00:14]}  Ka3 {[%clk 0:00:12]} 89. Rg1 {[%clk 0:00:15]}  b4 {[%clk 0:00:13]} 90. Rd1 {[%clk 0:00:15]}  b3 {[%clk 0:00:14]} 91. Rb1 {[%clk 0:00:11]}  axb1=Q {[%clk 0:00:14]} 0-1

[Event "December 19 Early 2023"]
[Site "https://www.chess.com"]
[Date "2023.12.19"]
[Round "4"]
[White "Grandelius, Nils"]
[Black "Sadykov, Ramil"]
[Result "1-0"]
[Board "44"]
[TimeControl "180+1"]
[WhiteFideId "1710400"]
[BlackFideId "24113590"]
[WhiteElo "2573"]
[BlackElo "2245"]
[WhiteTeam "SWE"]
[BlackTeam "FID"]
[WhiteClock "0:02:30"]
[BlackClock "0:01:01"]

1. d4 {[%clk 0:03:00]}  d5 {[%clk 0:02:55]} 2. Bf4 {[%clk 0:02:59]}  Bf5 {[%clk 0:02:50]} 3. c4 {[%clk 0:02:54]}  e6 {[%clk 0:02:23]} 4. Nc3 {[%clk 0:02:53]}  c6 {[%clk 0:02:06]} 5. e3 {[%clk 0:02:49]}  Nf6 {[%clk 0:01:53]} 6. Qb3 {[%clk 0:02:48]}  Qb6 {[%clk 0:01:52]} 7. c5 {[%clk 0:02:49]}  Qxb3 {[%clk 0:01:52]} 8. axb3 {[%clk 0:02:49]}  a6 {[%clk 0:01:50]} 9. b4 {[%clk 0:02:50]}  Nh5 {[%clk 0:01:42]} 10. Be5 {[%clk 0:02:35]}  f6 {[%clk 0:01:40]} 11. Bxb8 {[%clk 0:02:29]}  Rxb8 {[%clk 0:01:01]} 12. Be2 {[%clk 0:02:30]} 1-0

[Event "December 19 Early 2023"]
[Site "https://www.chess.com"]
[Date "2023.12.19"]
[Round "4"]
[White "Burovic, Rijad"]
[Black "Mahdavi, Reza"]
[Result "0-1"]
[Board "49"]
[TimeControl "180+1"]
[WhiteFideId "14407701"]
[BlackFideId "12595926"]
[WhiteElo "2384"]
[BlackElo "2426"]
[WhiteTeam "BIH"]
[BlackTeam "IRI"]
[WhiteClock "0:00:00"]
[BlackClock "0:00:35"]

1. e4 {[%clk 0:03:00]}  c5 {[%clk 0:03:00]} 2. d3 {[%clk 0:03:01]}  d6 {[%clk 0:02:59]} 3. g3 {[%clk 0:03:01]}  Nf6 {[%clk 0:03:00]} 4. Bg2 {[%clk 0:03:02]}  g6 {[%clk 0:03:00]} 5. f4 {[%clk 0:03:03]}  Bg7 {[%clk 0:03:01]} 6. Nf3 {[%clk 0:03:03]}  O-O {[%clk 0:03:02]} 7. O-O {[%clk 0:03:04]}  Nc6 {[%clk 0:03:03]} 8. Nc3 {[%clk 0:03:05]}  Rb8 {[%clk 0:03:03]} 9. h3 {[%clk 0:03:05]}  b5 {[%clk 0:03:03]} 10. g4 {[%clk 0:03:06]}  b4 {[%clk 0:03:04]} 11. Ne2 {[%clk 0:03:07]}  Nd7 {[%clk 0:03:01]} 12. g5 {[%clk 0:03:07]}  e6 {[%clk 0:03:00]} 13. h4 {[%clk 0:03:07]}  a5 {[%clk 0:02:54]} 14. Rb1 {[%clk 0:03:07]}  a4 {[%clk 0:02:53]} 15. Be3 {[%clk 0:03:08]}  Ba6 {[%clk 0:02:52]} 16. b3 {[%clk 0:03:06]}  f5 {[%clk 0:02:39]} 17. h5 {[%clk 0:02:55]}  Qe8 {[%clk 0:02:24]} 18. Ng3 {[%clk 0:02:50]}  Bb5 {[%clk 0:02:12]} 19. Nh4 {[%clk 0:02:47]}  Nb6 {[%clk 0:02:07]} 20. Qf3 {[%clk 0:02:09]}  Nd4 {[%clk 0:02:07]} 21. Qf2 {[%clk 0:02:09]}  Bc6 {[%clk 0:01:54]} 22. Rbe1 {[%clk 0:02:05]}  Qf7 {[%clk 0:01:54]} 23. Kh2 {[%clk 0:01:54]}  axb3 {[%clk 0:01:50]} 24. axb3 {[%clk 0:01:54]}  Ra8 {[%clk 0:01:50]} 25. exf5 {[%clk 0:01:49]}  exf5 {[%clk 0:01:46]} 26. Bxc6 {[%clk 0:01:30]}  Nxc6 {[%clk 0:01:47]} 27. Bxc5 {[%clk 0:01:30]}  dxc5 {[%clk 0:01:14]} 28. Qxc5 {[%clk 0:01:31]}  Qd5 {[%clk 0:01:14]} 29. Qxd5+ {[%clk 0:00:29]}  Nxd5 {[%clk 0:01:15]} 30. hxg6 {[%clk 0:00:30]}  hxg6 {[%clk 0:01:13]} 31. Nxg6 {[%clk 0:00:31]}  Rf7 {[%clk 0:01:11]} 32. Nh4 {[%clk 0:00:29]}  Nd4 {[%clk 0:01:05]} 33. Rf2 {[%clk 0:00:29]}  Rc8 {[%clk 0:01:01]} 34. Nh5 {[%clk 0:00:20]}  Re7 {[%clk 0:00:50]} 35. Rxe7 {[%clk 0:00:13]}  Nxe7 {[%clk 0:00:51]} 36. Ng3 {[%clk 0:00:08]}  Kf7 {[%clk 0:00:38]} 37. Kh3 {[%clk 0:00:07]}  Rh8 {[%clk 0:00:38]} 38. Nf1 {[%clk 0:00:02]}  Ng6 {[%clk 0:00:38]} 39. Kg3 {[%clk 0:00:02]}  Rxh4 {[%clk 0:00:39]} 40. Ne3 {[%clk 0:00:02]}  Rxf4 {[%clk 0:00:35]} 41. Rxf4 {[%clk 0:00:02]}  Be5 {[%clk 0:00:33]} 42. Nd5 {[%clk 0:00:02]}  Nxf4 {[%clk 0:00:33]} 43. Nxf4 {[%clk 0:00:01]}  Ne2+ {[%clk 0:00:33]} 44. Kf3 {[%clk 0:00:02]}  Nxf4 {[%clk 0:00:34]} 45. d4 {[%clk 0:00:02]}  Bd6 {[%clk 0:00:35]} 46. g6+ {[%clk 0:00:00]}  Kxg6 {[%clk 0:00:35]} 0-1

[Event "December 19 Early 2023"]
[Site "https://www.chess.com"]
[Date "2023.12.19"]
[Round "4"]
[White "Jumabayev, Rinat"]
[Black "Kokoszczynski, Jan"]
[Result "1/2-1/2"]
[Board "52"]
[TimeControl "180+1"]
[WhiteFideId "13702661"]
[BlackFideId "1174460"]
[WhiteElo "2561"]
[BlackElo "2266"]
[WhiteTeam "KAZ"]
[BlackTeam "POL"]
[WhiteClock "0:00:03"]
[BlackClock "0:00:06"]

1. Nf3 {[%clk 0:01:57]}  d5 {[%clk 0:02:53]} 2. g3 {[%clk 0:01:55]}  c6 {[%clk 0:02:53]} 3. Bg2 {[%clk 0:01:54]}  Bg4 {[%clk 0:02:54]} 4. c4 {[%clk 0:01:55]}  e6 {[%clk 0:02:51]} 5. Qb3 {[%clk 0:01:47]}  Qb6 {[%clk 0:02:50]} 6. h3 {[%clk 0:01:46]}  Bh5 {[%clk 0:02:39]} 7. d3 {[%clk 0:01:39]}  Nd7 {[%clk 0:02:36]} 8. O-O {[%clk 0:01:35]}  Ngf6 {[%clk 0:02:36]} 9. Be3 {[%clk 0:01:34]}  Bc5 {[%clk 0:02:31]} 10. d4 {[%clk 0:01:34]}  Qxb3 {[%clk 0:02:10]} 11. axb3 {[%clk 0:01:34]}  Bd6 {[%clk 0:01:58]} 12. Nc3 {[%clk 0:01:33]}  O-O {[%clk 0:01:56]} 13. Bf4 {[%clk 0:01:32]}  Bxf4 {[%clk 0:01:48]} 14. gxf4 {[%clk 0:01:33]}  Bg6 {[%clk 0:01:49]} 15. Ne5 {[%clk 0:00:59]}  Nxe5 {[%clk 0:01:49]} 16. fxe5 {[%clk 0:01:00]}  Nh5 {[%clk 0:01:48]} 17. c5 {[%clk 0:00:22]}  f6 {[%clk 0:01:42]} 18. e3 {[%clk 0:00:14]}  fxe5 {[%clk 0:01:31]} 19. dxe5 {[%clk 0:00:15]}  a6 {[%clk 0:01:32]} 20. Ra4 {[%clk 0:00:10]}  Bd3 {[%clk 0:01:15]} 21. Rc1 {[%clk 0:00:09]}  g5 {[%clk 0:01:03]} 22. Rg4 {[%clk 0:00:08]}  h6 {[%clk 0:01:01]} 23. Rd4 {[%clk 0:00:05]}  Bf5 {[%clk 0:00:58]} 24. h4 {[%clk 0:00:05]}  Ng7 {[%clk 0:00:27]} 25. Ne2 {[%clk 0:00:05]}  Kf7 {[%clk 0:00:23]} 26. Ng3 {[%clk 0:00:05]}  Bg6 {[%clk 0:00:24]} 27. hxg5 {[%clk 0:00:04]}  hxg5 {[%clk 0:00:25]} 28. Rg4 {[%clk 0:00:05]}  Rh8 {[%clk 0:00:15]} 29. Rxg5 {[%clk 0:00:04]}  Rh4 {[%clk 0:00:16]} 30. f4 {[%clk 0:00:04]}  Rah8 {[%clk 0:00:16]} 31. Kf2 {[%clk 0:00:04]}  Rh2 {[%clk 0:00:10]} 32. Rh1 {[%clk 0:00:04]}  Bc2 {[%clk 0:00:08]} 33. Rxh2 {[%clk 0:00:03]}  Rxh2 {[%clk 0:00:08]} 34. Kg1 {[%clk 0:00:04]}  Rh4 {[%clk 0:00:08]} 35. b4 {[%clk 0:00:04]}  Bg6 {[%clk 0:00:05]} 36. Kf2 {[%clk 0:00:05]}  Bf5 {[%clk 0:00:05]} 37. Kg1 {[%clk 0:00:04]}  Bg6 {[%clk 0:00:06]} 38. Kf2 {[%clk 0:00:04]}  Bf5 {[%clk 0:00:06]} 39. Kf3 {[%clk 0:00:05]}  Rh2 {[%clk 0:00:05]} 40. Kf2 {[%clk 0:00:02]}  Bg6 {[%clk 0:00:05]} 41. Kg1 {[%clk 0:00:03]}  Rh4 {[%clk 0:00:06]} 1/2-1/2

[Event "December 19 Early 2023"]
[Site "https://www.chess.com"]
[Date "2023.12.19"]
[Round "4"]
[White "Sipila, Vilka"]
[Black "Harutjunyan, Gevorg"]
[Result "1-0"]
[Board "53"]
[TimeControl "180+1"]
[WhiteFideId "505455"]
[BlackFideId "13300873"]
[WhiteElo "2343"]
[BlackElo "2436"]
[WhiteTeam "FIN"]
[BlackTeam "ARM"]
[WhiteClock "0:01:31"]
[BlackClock "0:00:02"]

1. e4 {[%clk 0:03:00]}  c6 {[%clk 0:02:58]} 2. d4 {[%clk 0:03:00]}  d5 {[%clk 0:02:59]} 3. e5 {[%clk 0:02:59]}  Bf5 {[%clk 0:02:59]} 4. Nf3 {[%clk 0:02:58]}  e6 {[%clk 0:02:59]} 5. Be2 {[%clk 0:02:59]}  Ne7 {[%clk 0:02:59]} 6. c3 {[%clk 0:02:57]}  h6 {[%clk 0:02:59]} 7. O-O {[%clk 0:02:56]}  Nc8 {[%clk 0:02:56]} 8. a4 {[%clk 0:02:56]}  a5 {[%clk 0:02:56]} 9. Nbd2 {[%clk 0:02:53]}  Be7 {[%clk 0:02:55]} 10. Re1 {[%clk 0:02:51]}  O-O {[%clk 0:02:42]} 11. Nf1 {[%clk 0:02:50]}  Nd7 {[%clk 0:02:31]} 12. Ng3 {[%clk 0:02:50]}  Bh7 {[%clk 0:02:30]} 13. Bd3 {[%clk 0:02:50]}  c5 {[%clk 0:02:25]} 14. Bxh7+ {[%clk 0:02:49]}  Kxh7 {[%clk 0:02:26]} 15. dxc5 {[%clk 0:02:44]}  Nxc5 {[%clk 0:02:25]} 16. Nd4 {[%clk 0:02:44]}  Nb6 {[%clk 0:02:21]} 17. f4 {[%clk 0:02:43]}  Qd7 {[%clk 0:02:07]} 18. f5 {[%clk 0:02:41]}  exf5 {[%clk 0:01:51]} 19. Ngxf5 {[%clk 0:02:40]}  Nbxa4 {[%clk 0:01:19]} 20. Qh5 {[%clk 0:02:28]}  Ra6 {[%clk 0:01:19]} 21. e6 {[%clk 0:02:25]}  Rxe6 {[%clk 0:00:54]} 22. Nxe6 {[%clk 0:02:20]}  Nxe6 {[%clk 0:00:54]} 23. Nxe7 {[%clk 0:02:20]}  Qxe7 {[%clk 0:00:49]} 24. Rxa4 {[%clk 0:02:18]}  b5 {[%clk 0:00:43]} 25. Rxa5 {[%clk 0:02:09]}  d4 {[%clk 0:00:35]} 26. Rxb5 {[%clk 0:02:03]}  d3 {[%clk 0:00:32]} 27. Qf5+ {[%clk 0:02:02]}  Kg8 {[%clk 0:00:32]} 28. Qxd3 {[%clk 0:02:02]}  Qa7+ {[%clk 0:00:30]} 29. Be3 {[%clk 0:02:01]}  Qa4 {[%clk 0:00:31]} 30. Rb4 {[%clk 0:01:58]}  Qa2 {[%clk 0:00:29]} 31. Qc4 {[%clk 0:01:55]}  Qa8 {[%clk 0:00:28]} 32. Qe4 {[%clk 0:01:51]}  Qa6 {[%clk 0:00:27]} 33. Rb6 {[%clk 0:01:50]}  Qa2 {[%clk 0:00:26]} 34. Bd4 {[%clk 0:01:44]}  Ng5 {[%clk 0:00:23]} 35. Qe7 {[%clk 0:01:42]}  Ra8 {[%clk 0:00:16]} 36. Rb7 {[%clk 0:01:35]}  Qd5 {[%clk 0:00:15]} 37. Qe5 {[%clk 0:01:34]}  Qxe5 {[%clk 0:00:07]} 38. Bxe5 {[%clk 0:01:35]}  Ra2 {[%clk 0:00:05]} 39. Bd4 {[%clk 0:01:32]}  f6 {[%clk 0:00:02]} 40. h4 {[%clk 0:01:31]} 1-0